bitfinex-derivatives/quotes_SOLF0:USTF0_20240924
["timestamp","ask_amount","ask_price","bid_price","bid_amount"]
[1727210354300,12.73668032,148.68,148.64,9.31]
[1727210354506,3.363,148.67,148.64,12.6736]
[1727210355110,80.76,148.72,148.61,2.6502]
[1727210355305,90.07,148.72,148.68,9.31]
[1727210355905,93.37786834,148.72,148.68,9.31]
[1727210356103,12.61786834,148.72,148.68,9.31]
[1727210356303,4.8035,148.76,148.61,2.6502]
[1727210356497,14.53,148.69,148.61,2.6502]
[1727210356901,3.3633,148.66,148.61,6.0144]
[1727210357603,3.3633,148.66,148.61,2.6502]
[1727210358208,3.3633,148.66,148.62,3.3639]
[1727210359005,17.90921518,148.67,148.6,5.4998]
[1727210359603,3.3634,148.65,148.61,3.3643]
[1727210362617,3.3634,148.65,148.62,3.3641]
[1727210362818,21.27221518,148.67,148.6,5.4998]
[1727210363018,14.53,148.69,148.6,20.0298]
[1727210363315,14.53,148.69,148.64,3.3635]
[1727210363517,3.3628,148.68,148.64,3.3635]
[1727210364304,3.3628,148.68,148.61,14.53]
[1727210365818,3.3628,148.68,148.65,3.3633]
[1727210366519,3.3628,148.68,148.64,3.3635]
[1727210366520,6.65855284,148.68,148.64,3.3635]
[1727210367015,3.3628,148.68,148.64,3.3635]
[1727210369919,3.41330784,148.68,148.63,3.3637]
[1727210370120,14.53,148.66,148.6,5.4998]
[1727210370320,3.3635,148.65,148.6,5.4998]
[1727210370614,3.3635,148.65,148.61,3.3641]
[1727210371518,14.53,148.62,148.57,2.7604]
[1727210372121,14.53,148.6,148.54,5.4245]
[1727210373821,3.3649,148.59,148.55,3.3656]
[1727210374615,14.53,148.6,148.42,89.85881981]
[1727210374616,3.3656,148.56,148.42,89.85881981]
[1727210374820,3.41265095,148.61,148.49,5.6029]
[1727210375022,14.53,148.57,148.52,3.3662]
[1727210375621,3.3656,148.56,148.52,3.3662]
[1727210376121,14.53,148.57,148.53,3.3661]
[1727210376310,17.8953,148.57,148.53,3.3661]
[1727210376715,17.8953,148.57,148.49,16.63484151]
[1727210376716,14.53,148.57,148.49,16.63484151]
[1727210376917,3.3651,148.58,148.51,14.53]
[1727210377124,6.68339987,148.58,148.51,14.53]
[1727210377515,3.31829987,148.58,148.49,5.6029]
[1727210377711,14.53,148.6,148.49,20.1329]
[1727210377917,14.53,148.6,148.49,26.56946692]
[1727210378219,3.3653,148.57,148.53,3.366]
[1727210378923,3.3653,148.57,148.54,3.3658]
[1727210380117,17.95773437,148.6,148.54,3.3658]
[1727210380118,3.3651,148.58,148.54,3.3658]
[1727210380319,9.31,148.57,148.54,3.3658]
[1727210381427,12.6752,148.57,148.54,3.3658]
[1727210381926,12.6752,148.57,148.55,3.3656]
[1727210381927,9.31,148.57,148.55,3.3656]
[1727210382818,9.31,148.57,148.5,2.6499]
[1727210382819,3.42773437,148.6,148.54,9.31]
[1727210383019,9.31,148.59,148.54,9.31]
[1727210383721,12.6749,148.59,148.56,3.3653]
[1727210384725,9.31,148.59,148.57,3.3651]
[1727210386131,9.31,148.6,148.58,3.3649]
[1727210386318,12.60371693,148.62,148.57,9.31]
[1727210386519,9.31,148.62,148.57,9.31]
[1727210386716,12.6742,148.62,148.59,3.3646]
[1727210386920,9.31,148.62,148.57,9.31]
[1727210387130,12.68856835,148.62,148.57,9.31]
[1727210387928,3.3643,148.61,148.58,3.3649]
[1727210391024,12.6743,148.61,148.58,3.3649]
[1727210393824,12.6743,148.61,148.58,3.3648]
[1727210394023,3.3643,148.61,148.57,9.31]
[1727210394423,12.6742,148.62,148.59,3.3647]
[1727210394618,9.31,148.61,148.59,3.3647]
[1727210395822,12.6743,148.61,148.59,3.3647]
[1727210397231,9.31,148.61,148.59,3.3647]
[1727210398133,9.31,148.61,148.51,59.51304497]
[1727210398433,9.31,148.61,148.56,9.31]
[1727210399027,12.6743,148.61,148.58,3.3649]
[1727210399226,12.6743,148.61,148.56,9.31]
[1727210400628,12.6743,148.61,148.58,3.3648]
[1727210401227,9.31,148.61,148.59,3.3647]
[1727210401949,2.1405,148.69,148.52,11.00653811]
[1727210402126,9.31,148.67,148.63,9.31]
[1727210402324,2.8472,148.71,148.58,2.6691]
[1727210402325,9.31,148.66,148.61,9.31]
[1727210402530,9.31,148.65,148.6,9.31]
[1727210403239,12.6735,148.65,148.6,9.31]
[1727210403429,9.31,148.63,148.59,14.8052]
[1727210404329,9.31,148.63,148.61,3.3642]
[1727210405335,12.674,148.63,148.6,3.3645]
[1727210406136,3.3641,148.62,148.6,3.3645]
[1727210407230,9.31,148.61,148.5,10.07155102]
[1727210407438,9.31,148.58,148.53,9.31]
[1727210407731,12.6751,148.58,148.55,3.3655]
[1727210413335,12.6751,148.58,148.56,3.3654]
[1727210414436,12.6751,148.58,148.55,3.3655]
[1727210415238,9.31,148.56,148.54,3.3659]
[1727210417037,3.3658,148.55,148.52,2.6641]
[1727210417234,3.3658,148.55,148.51,68.82304497]
[1727210417438,3.3658,148.55,148.52,3.3662]
[1727210417836,3.3658,148.55,148.51,68.82304497]
[1727210418041,3.30428078,148.59,148.52,9.31]
[1727210418243,9.31,148.57,148.52,9.31]
[1727210418635,12.6753,148.57,148.54,3.3657]
[1727210418946,15.97440432,148.57,148.54,3.3657]
[1727210419135,3.3653,148.57,148.52,9.31]
[1727210419334,9.31,148.58,148.53,9.31]
[1727210419538,9.31,148.6,148.54,9.31]
[1727210419741,6.69228813,148.59,148.56,3.3653]
[1727210422154,3.3647,148.6,148.54,9.31]
[1727210422347,12.61617527,148.61,148.56,9.31]
[1727210422650,3.3647,148.6,148.57,3.3651]
[1727210427044,3.3647,148.6,148.55,9.31]
[1727210427848,2.8108,148.65,148.58,9.31]
[1727210428149,9.31,148.62,148.58,9.31]
[1727210428351,12.70416522,148.62,148.58,9.31]
[1727210429446,16.06836522,148.62,148.59,3.3646]
[1727210430043,16.06836522,148.62,148.6,3.3645]
[1727210430243,9.31,148.62,148.58,9.31]
[1727210430450,9.31,148.68,148.61,9.31]
[1727210430645,9.31,148.68,148.64,3.3635]
[1727210430846,9.31,148.65,148.54,17.73192164]
[1727210431140,9.31,148.65,148.6,9.31]
[1727210431638,3.3636,148.64,148.61,3.3641]
[1727210431843,9.31,148.65,148.6,9.31]
[1727210432747,12.6735,148.65,148.62,3.364]
[1727210432944,9.31,148.66,148.62,9.31]
[1727210433141,3.36889902,148.74,148.65,9.31]
[1727210433350,9.31,148.74,148.69,9.31]
[1727210433553,3.39144809,148.74,148.69,9.31]
[1727210433849,3.3615,148.74,148.7,3.3622]
[1727210434048,3.35038858,148.73,148.7,3.3622]
[1727210435049,3.35038858,148.73,148.69,3.3625]
[1727210435253,9.31,148.71,148.67,2.6855]
[1727210435549,9.31,148.72,148.68,9.31]
[1727210435949,9.31,148.72,148.69,3.3623]
[1727210436447,4.24700259,148.78,148.72,3.3617]
[1727210436653,9.31,148.76,148.72,9.31]
[1727210437052,3.3613,148.75,148.72,9.31]
[1727210437249,3.3613,148.75,148.67,2.6855]
[1727210437250,9.31,148.73,148.67,2.6855]
[1727210437548,9.31,148.7,148.67,2.6855]
[1727210438554,9.31,148.7,148.68,3.3626]
[1727210438745,9.31,148.73,148.68,9.31]
[1727210439159,12.6716,148.73,148.7,3.3621]
[1727210439353,4.24700259,148.78,148.7,9.31]
[1727210439554,3.3607,148.77,148.73,9.31]
[1727210439764,9.31,148.76,148.71,9.31]
[1727210439953,0.8357,148.83,148.67,11.9955]
[1727210439954,9.31,148.73,148.67,11.9955]
[1727210440153,9.31,148.73,148.7,3.3622]
[1727210440957,9.31,148.73,148.69,9.31]
[1727210441475,0.8357,148.83,148.72,9.31]
[1727210441476,9.31,148.79,148.72,9.31]
[1727210441668,3.33288482,148.78,148.74,9.31]
[1727210441954,12.64288482,148.78,148.74,9.31]
[1727210442155,3.3608,148.77,148.74,9.31]
[1727210443461,3.361,148.76,148.73,1.4009]
[1727210443653,9.31,148.76,148.73,1.4009]
[1727210444158,12.6711,148.76,148.73,1.4009]
[1727210444458,3.30149334,148.78,148.73,1.4009]
[1727210444459,14.54,148.77,148.73,1.4009]
[1727210444657,3.3613,148.75,148.73,1.4009]
[1727210444861,3.35934346,148.74,148.67,2.6855]
[1727210445062,14.54,148.75,148.68,1.353]
[1727210445260,3.362,148.72,148.68,1.353]
[1727210446754,3.362,148.72,148.68,4.7156]
[1727210447561,0.8357,148.83,148.71,14.54]
[1727210447763,0.8357,148.83,148.72,14.54]
[1727210447764,14.54,148.81,148.72,14.54]
[1727210448356,3.361,148.76,148.72,17.9017]
[1727210448659,3.35463557,148.75,148.68,1.353]
[1727210448956,14.54,148.77,148.68,1.353]
[1727210449358,17.87546623,148.77,148.68,1.353]
[1727210449551,3.3615,148.74,148.7,3.3621]
[1727210450063,17.87546623,148.77,148.7,3.3622]
[1727210450460,3.3622,148.71,148.68,1.353]
[1727210451762,14.54,148.77,148.68,15.893]
[1727210451960,17.83105833,148.77,148.68,15.893]
[1727210453455,17.83105833,148.77,148.61,338.0]
[1727210453456,3.29105833,148.77,148.61,338.0]
[1727210453661,14.54,148.71,148.62,18.5734]
[1727210454065,3.3626,148.69,148.65,3.3633]
[1727210455261,14.54,148.71,148.66,3.363]
[1727210455462,3.36989378,148.7,148.64,14.54]
[1727210455656,3.3626,148.69,148.65,3.3634]
[1727210456468,3.3627,148.68,148.65,3.3634]
[1727210458465,3.3626,148.69,148.65,3.3634]
[1727210459668,3.3626,148.69,148.66,3.3631]
[1727210460071,3.3625,148.7,148.66,3.3631]
[1727210460472,14.54,148.71,148.62,18.5734]
[1727210460674,3.3626,148.69,148.62,18.5734]
[1727210460969,3.39377942,148.7,148.65,3.3633]
[1727210461372,3.3629,148.68,148.65,3.3633]
[1727210461677,14.54,148.71,148.62,18.5734]
[1727210461875,3.3626,148.69,148.62,4.0334]
[1727210462073,14.54,148.74,148.64,14.54]
[1727210462269,15.3757,148.76,148.65,14.54]
[1727210462466,15.3757,148.76,148.68,14.54]
[1727210462690,15.3757,148.76,148.69,1.4112]
[1727210462969,3.362,148.72,148.69,1.4112]
[1727210463379,3.362,148.72,148.69,4.7736]
[1727210466274,10.10702477,148.78,148.69,15.9512]
[1727210466275,17.92592477,148.78,148.69,15.9512]
[1727210466469,17.92592477,148.78,148.7,1.3935]
[1727210466673,3.3615,148.74,148.71,3.362]
[1727210468869,3.38592477,148.78,148.7,2.8303]
[1727210469069,7.5558,148.82,148.71,14.54]
[1727210469070,14.54,148.8,148.71,14.54]
[1727210469471,84.12239472,148.79,148.71,14.54]
[1727210469770,84.12239472,148.79,148.72,3.3616]
[1727210470576,3.3612,148.75,148.72,3.3616]
[1727210475377,3.3612,148.75,148.73,3.3616]
[1727210477879,3.3612,148.75,148.72,3.3617]
[1727210478787,3.3612,148.75,148.73,3.3615]
[1727210479595,3.361,148.76,148.73,3.3615]
[1727210480294,6.7152,148.91,148.7,2.8303]
[1727210480500,6.7152,148.91,148.76,9.29]
[1727210480501,9.29,148.81,148.76,9.29]
[1727210480798,9.29,148.81,148.71,3.39510002]
[1727210480799,9.29,148.79,148.71,3.39510002]
[1727210481098,9.29,148.78,148.73,9.29]
[1727210481293,3.3607,148.77,148.73,12.6515]
[1727210481994,3.3607,148.77,148.74,3.3613]
[1727210483907,3.3607,148.77,148.73,12.6515]
[1727210484612,12.6505,148.78,148.74,3.3613]
[1727210484901,12.6505,148.78,148.73,9.29]
[1727210485104,9.29,148.78,148.75,12.651]
[1727210485303,3.3603,148.79,148.75,12.651]
[1727210486604,3.3603,148.79,148.76,3.3608]
[1727210491312,9.29,148.79,148.74,9.29]
[1727210491712,9.29,148.76,148.7,2.8303]
[1727210492006,9.29,148.74,148.7,2.8303]
[1727210492205,9.29,148.74,148.72,3.3617]
[1727210492412,9.29,148.74,148.7,12.1203]
[1727210492805,9.29,148.74,148.72,3.3617]
[1727210493009,9.29,148.78,148.73,9.29]
[1727210493421,3.3608,148.77,148.74,9.29]
[1727210493805,9.29,148.79,148.74,9.29]
[1727210494317,3.3606,148.78,148.75,3.361]
[1727210494513,12.67770182,148.79,148.74,9.29]
[1727210495614,12.67770182,148.79,148.74,3.3612]
[1727210495615,3.3607,148.77,148.74,3.3612]
[1727210497224,3.361,148.76,148.73,3.3615]
[1727210497412,9.29,148.77,148.73,3.3615]
[1727210497610,12.6513,148.75,148.72,3.3617]
[1727210498020,9.29,148.74,148.7,2.8303]
[1727210498415,9.29,148.75,148.71,9.29]
[1727210498815,12.6513,148.75,148.72,3.3616]
[1727210500120,12.6513,148.75,148.7,2.8303]
[1727210500121,6.7185,148.84,148.73,9.29]
[1727210500323,9.29,148.78,148.73,9.29]
[1727210500620,12.63667384,148.78,148.73,9.29]
[1727210501017,3.3609,148.77,148.73,9.29]
[1727210501218,12.63667384,148.78,148.73,9.29]
[1727210501527,3.361,148.76,148.73,3.3615]
[1727210504735,3.29050918,148.78,148.7,2.8303]
[1727210504920,9.29,148.75,148.71,9.29]
[1727210505523,3.3614,148.74,148.71,9.29]
[1727210506123,3.3614,148.74,148.71,12.6519]
[1727210510833,9.29,148.75,148.71,12.6519]
[1727210511229,9.29,148.75,148.71,9.29]
[1727210511932,9.29,148.75,148.72,3.3616]
[1727210512636,9.29,148.75,148.73,3.3615]
[1727210514628,12.58051641,148.78,148.74,3.3613]
[1727210514837,9.29,148.78,148.74,3.3613]
[1727210515333,15.98954097,148.78,148.74,3.3613]
[1727210518139,12.6506,148.78,148.75,3.3611]
[1727210519737,9.29,148.77,148.74,3.3612]
[1727210523433,9.29,148.77,148.75,3.361]
[1727210524946,9.29,148.76,148.7,2.8303]
[1727210525236,9.29,148.75,148.7,12.1203]
[1727210526131,9.29,148.77,148.72,9.29]
[1727210526336,9.29,148.77,148.74,9.29]
[1727210526540,9.29,148.77,148.75,3.3609]
[1727210527236,4.13458969,148.82,148.74,9.29]
[1727210527441,4.13458969,148.82,148.7,2.8303]
[1727210527442,4.13458969,148.82,148.76,9.29]
[1727210527635,13.60740509,148.85,148.79,9.29]
[1727210527833,9.29,148.82,148.79,12.6501]
[1727210528043,12.69317481,148.82,148.79,3.3601]
[1727210528340,12.62624806,148.82,148.79,3.3601]
[1727210528542,9.29,148.82,148.79,3.3601]
[1727210528844,6.65390865,148.82,148.78,3.3603]
[1727210529047,15.94390865,148.82,148.78,3.3603]
[1727210529541,15.94390865,148.82,148.7,2.8303]
[1727210529542,9.29,148.79,148.7,2.8303]
[1727210529735,0.8335,148.87,148.73,9.29]
[1727210529736,9.29,148.78,148.73,9.29]
[1727210530139,9.29,148.78,148.74,9.29]
[1727210531742,9.29,148.78,148.76,3.3609]
[1727210532443,15.97511506,148.79,148.76,3.3609]
[1727210532645,9.29,148.79,148.77,3.3606]
[1727210532849,12.6501,148.8,148.77,3.3606]
[1727210533350,15.98343333,148.8,148.77,3.3606]
[1727210535948,213.0,148.74,148.72,2.51146334]
[1727210536154,9.29,148.73,148.63,2.7797]
[1727210536347,9.29,148.66,148.64,6.42827529]
[1727210536650,9.29,148.66,148.63,2.7797]
[1727210538447,6.67905937,148.67,148.63,2.7797]
[1727210540052,6.67905937,148.67,148.63,6.1435]
[1727210540852,3.31595937,148.67,148.63,2.7797]
[1727210541147,14.54,148.67,148.61,1.3343]
[1727210541356,14.54,148.65,148.58,2.7148]
[1727210541557,3.3638,148.64,148.6,3.3644]
[1727210542254,3.3638,148.64,148.61,3.3643]
[1727210542851,21.19140488,148.65,148.61,3.3643]
[1727210543255,3.3632,148.66,148.58,2.7148]
[1727210543459,6.81263962,148.66,148.59,15.958]
[1727210543749,14.54,148.71,148.61,14.54]
[1727210543954,17.84473142,148.71,148.61,14.54]
[1727210544355,3.363,148.67,148.61,14.54]
[1727210546652,3.363,148.67,148.63,3.3636]
[1727210546958,3.363,148.67,148.61,14.54]
[1727210547259,3.363,148.67,148.64,3.3636]
[1727210550255,3.3626,148.69,148.62,14.54]
[1727210550455,3.30473142,148.71,148.62,14.54]
[1727210550653,14.54,148.72,148.62,14.54]
[1727210550861,3.3625,148.69,148.66,3.363]
[1727210551065,6.64378155,148.69,148.66,3.363]
[1727210551253,6.64378155,148.69,148.6,14.54]
[1727210551254,3.3621,148.71,148.68,3.3626]
[1727210551557,3.36900151,148.71,148.65,4.0143]
[1727210551753,14.54,148.74,148.66,14.54]
[1727210551947,3.362,148.71,148.68,3.3626]
[1727210552152,6.72225348,148.71,148.68,3.3626]
[1727210553960,3.3623,148.7,148.67,3.3628]
[1727210554360,3.36025348,148.71,148.66,14.54]
[1727210554562,3.3621,148.71,148.68,3.3625]
[1727210554762,6.78178356,148.71,148.68,3.3625]
[1727210554958,14.54,148.76,148.68,14.54]
[1727210555160,80.74,148.94,148.73,14.54]
[1727210555366,14.54,148.82,148.73,14.54]
[1727210555661,17.90013767,148.82,148.73,14.54]
[1727210555863,3.3604,148.79,148.75,3.361]
[1727210556662,3.3604,148.79,148.76,3.3609]
[1727210556864,25.64913603,148.93,148.76,14.54]
[1727210557062,14.54,148.86,148.76,14.54]
[1727210557262,17.93714359,148.86,148.76,14.54]
[1727210557867,3.3595,148.83,148.78,3.3603]
[1727210558766,3.3595,148.83,148.79,3.3602]
[1727210562376,3.3592,148.84,148.77,14.54]
[1727210562567,3.3592,148.84,148.74,4.0888]
[1727210562568,3.39714359,148.86,148.79,14.54]
[1727210562775,14.54,148.9,148.81,14.54]
[1727210562976,80.72,148.93,148.82,3.3595]
[1727210563277,14.54,148.89,148.82,3.3595]
[1727210563477,17.95480634,148.89,148.82,3.3595]
[1727210564379,3.3588,148.86,148.82,3.3595]
[1727210564984,17.95480634,148.89,148.81,3.3597]
[1727210565188,14.54,148.86,148.77,14.54]
[1727210565667,3.3592,148.84,148.8,3.3599]
[1727210567169,3.3592,148.84,148.81,3.3597]
[1727210568970,3.3592,148.84,148.8,3.3599]
[1727210569472,3.3593,148.83,148.8,3.3599]
[1727210570080,3.3592,148.84,148.81,3.3598]
[1727210570282,14.54,148.87,148.79,14.54]
[1727210570473,14.54,148.87,148.8,1.3203]
[1727210570984,14.54,148.91,148.82,14.54]
[1727210571380,14.54,148.9,148.82,17.8995]
[1727210571977,3.3586,148.87,148.82,17.8995]
[1727210572281,3.36089824,148.86,148.82,17.8995]
[1727210573080,6.71959824,148.86,148.82,17.8995]
[1727210573780,3.3589,148.85,148.81,5.9824]
[1727210574187,14.54,148.87,148.81,5.9824]
[1727210574381,17.85440367,148.87,148.81,1.3173]
[1727210574578,17.85440367,148.87,148.8,1.3203]
[1727210574982,3.3594,148.83,148.8,1.3203]
[1727210576486,3.3594,148.83,148.8,4.6803]
[1727210579095,3.3597,148.82,148.8,1.3203]
[1727210580186,3.41098063,148.83,148.8,1.3203]
[1727210580389,14.54,148.85,148.8,1.3203]
[1727210580995,3.3597,148.82,148.8,1.3203]
[1727210581910,17.90045182,148.85,148.8,1.3203]
[1727210581911,3.3594,148.83,148.8,4.6803]
[1727210582398,3.36045182,148.85,148.82,3.3594]
[1727210582399,3.359,148.85,148.82,3.3594]
[1727210582694,6.68045498,148.85,148.82,3.3594]
[1727210583294,87.3737,148.94,148.8,4.1384]
[1727210583295,87.3737,148.94,148.83,14.54]
[1727210583496,14.54,148.92,148.83,14.54]
[1727210583700,3.3585,148.87,148.84,3.359]
[1727210589484,3.3586,148.86,148.83,3.3593]
[1727210589689,14.54,148.88,148.8,4.1384]
[1727210589888,17.94502308,148.88,148.8,4.1384]
[1727210590693,3.3587,148.86,148.82,3.3594]
[1727210590889,17.94502308,148.88,148.82,3.3594]
[1727210591396,17.94502308,148.88,148.83,3.3592]
[1727210591798,3.3587,148.86,148.83,3.3592]
[1727210594294,3.3589,148.85,148.83,3.3592]
[1727210595801,3.3589,148.86,148.83,3.3592]
[1727210598399,3.40502308,148.88,148.8,4.1384]
[1727210598603,14.54,148.92,148.83,14.54]
[1727210598802,14.54,148.94,148.85,14.54]
[1727210599006,14.54,148.96,148.86,1.377]
[1727210599208,14.54,148.96,148.87,14.54]
[1727210599409,3.3573,148.92,148.89,3.3579]
[1727210600602,83.98701739,148.97,148.89,14.54]
[1727210600908,83.98701739,148.97,148.91,14.54]
[1727210601108,3.3567,148.95,148.91,17.8974]
[1727210601401,83.98701739,148.97,148.89,14.54]
[1727210602911,3.357,148.94,148.9,3.3576]
[1727210603414,3.3571,148.93,148.9,3.3576]
[1727210604409,3.3569,148.94,148.9,3.3576]
[1727210605706,3.3571,148.93,148.9,3.3576]
[1727210606599,3.3568,148.95,148.92,3.3572]
[1727210606804,3.34701739,148.97,148.9,14.54]
[1727210607009,3.3565,148.96,148.93,3.3571]
[1727210607206,14.54,148.99,148.86,4.0019]
[1727210607207,14.54,149.01,148.92,14.54]
[1727210607407,14.54,149.01,148.93,1.3318]
[1727210608116,14.54,148.99,148.93,1.3318]
[1727210608499,14.54,148.97,148.93,1.3318]
[1727210609705,3.3568,148.95,148.93,1.3318]
[1727210610302,3.32404453,148.94,148.88,14.54]
[1727210610512,14.54,148.97,148.88,14.54]
[1727210611611,14.54,148.97,148.9,3.3577]
[1727210612510,14.54,148.97,148.91,3.3574]
[1727210613016,3.3568,148.95,148.88,14.54]
[1727210613203,14.54,148.99,148.9,14.54]
[1727210613403,3.3563,148.97,148.91,14.54]
[1727210613612,3.3563,148.97,148.92,2.6774]
[1727210613814,3.3563,148.97,148.93,3.3569]
[1727210614008,3.3563,148.97,148.92,2.6774]
[1727210614807,3.3563,148.97,148.94,3.3567]
[1727210615008,3.3563,148.97,148.93,1.4079]
[1727210615211,3.3565,148.96,148.93,4.7649]
[1727210617212,3.3566,148.95,148.93,1.4079]
[1727210622419,3.3568,148.94,148.93,1.4079]
[1727210625219,3.3568,148.94,148.92,2.6774]
[1727210625412,3.3568,148.94,148.92,1.3755]
[1727210625717,3.3571,148.93,148.92,1.3755]
[1727210626013,14.54,148.97,148.89,1.4056]
[1727210626315,3.3577,148.91,148.89,1.4056]
[1727210626619,3.3574,148.92,148.89,4.7634]
[1727210629524,3.3574,148.92,148.9,3.3576]
[1727210631924,3.3574,148.92,148.89,4.7635]
[1727210632418,3.3574,148.92,148.9,9.29]
[1727210632610,3.3574,148.92,148.9,12.6477]
[1727210635728,3.3572,148.93,148.91,9.29]
[1727210640627,3.3573,148.92,148.91,9.29]
[1727210644030,12.59231776,148.95,148.91,12.6475]
[1727210644031,3.3572,148.93,148.91,12.6475]
[1727210644539,3.3572,148.93,148.91,9.29]
[1727210644735,3.3572,148.93,148.9,12.6476]
[1727210645322,12.66890292,148.95,148.86,1.4226]
[1727210645323,9.29,148.91,148.86,1.4226]
[1727210645523,9.29,148.88,148.83,11.9322]
[1727210645931,3.3586,148.87,148.84,3.359]
[1727210646228,12.58963641,148.88,148.83,11.9322]
[1727210646432,3.3589,148.85,148.83,2.6422]
[1727210647426,9.29,148.85,148.79,10.712]
[1727210647626,9.29,148.85,148.81,9.29]
[1727210647827,9.29,148.86,148.82,3.3594]
[1727210648028,3.359,148.85,148.82,3.3594]
[1727210651837,3.3591,148.84,148.81,12.6497]
[1727210652050,9.29,148.85,148.81,3.3597]
[1727210652436,3.3593,148.84,148.81,3.3597]
[1727210652834,12.6493,148.84,148.81,3.3597]
[1727210655540,3.3593,148.83,148.81,3.3597]
[1727210655736,3.38192579,148.88,148.79,1.422]
[1727210656037,12.6497,148.82,148.79,1.422]
[1727210656236,12.6497,148.82,148.79,4.782]
[1727210656435,9.29,148.83,148.79,10.712]
[1727210656635,12.6494,148.83,148.79,10.712]
[1727210656837,12.6494,148.83,148.8,3.3599]
[1727210658043,12.6491,148.84,148.81,3.3597]
[1727210658242,12.6491,148.84,148.8,9.29]
[1727210658541,12.6491,148.84,148.81,3.3597]
[1727210663547,12.6491,148.84,148.8,9.29]
[1727210663548,3.3595,148.82,148.79,1.422]
[1727210664644,3.3595,148.82,148.79,4.7821]
[1727210665047,3.3595,148.82,148.79,14.0721]
[1727210665944,9.29,148.83,148.8,9.29]
[1727210665945,3.3594,148.83,148.8,9.29]
[1727210666347,3.3594,148.83,148.81,9.29]
[1727210666544,3.3592,148.84,148.81,12.6496]
[1727210667641,3.3593,148.83,148.81,12.6496]
[1727210676647,3.3593,148.83,148.81,3.3596]
[1727210679352,3.3593,148.83,148.8,3.3599]
[1727210681648,3.3596,148.82,148.8,3.3599]
[1727210681864,9.29,148.83,148.79,4.7822]
[1727210682657,3.3596,148.82,148.79,4.7822]
[1727210683050,9.29,148.83,148.79,4.7822]
[1727210683856,3.3596,148.82,148.79,4.7822]
[1727210684555,3.3598,148.81,148.79,4.7822]
[1727210685954,3.3598,148.81,148.79,3.3602]
[1727210686755,3.36,148.8,148.78,3.3604]
[1727210687155,9.29,148.82,148.78,3.3604]
[1727210687356,3.3599,148.81,148.79,3.3602]
[1727210693655,9.29,148.83,148.78,9.29]
[1727210694263,9.29,148.83,148.8,3.3598]
[1727210694654,3.3598,148.81,148.79,3.3602]
[1727210696761,3.3598,148.81,148.78,3.3603]
[1727210696961,3.36,148.8,148.78,3.3603]
[1727210697268,3.3201144,148.84,148.76,1.3597]
[1727210697269,9.29,148.79,148.76,1.3597]
[1727210697470,12.6504,148.79,148.76,1.3597]
[1727210698265,12.6504,148.79,148.76,4.7205]
[1727210699364,9.29,148.78,148.76,1.3597]
[1727210699663,9.29,148.77,148.75,1.3427]
[1727210700074,9.29,148.77,148.75,4.7036]
[1727210700276,9.29,148.79,148.75,10.6327]
[1727210700673,12.6504,148.79,148.76,3.3608]